Cogmind - Beta 14 @@@ ROGUE MODE // 2025.01.15 @ 16:59:02 Player: muesli Result: Destroyed by Y-45 Defender with Heavy Assault Rifle Performance ------------- Evolutions (2) 1000 Regions Visited (4) 800 Robots Destroyed (62) 310 Value Destroyed (1925) 1925 Prototype IDs (2) 40 Alien Tech Used (0) 0 Bonus (23) 23 TOTAL SCORE: 4098 Bonus ------- High Alert Combat Kills 136 Follower Combat Kills 35 Friendly Fire -148 Cogmind --------- Core Integrity 0/550 Matter 196/300 Energy 100/100 System Corruption 2% Temperature Warm (126) Movement Core (400) Ox7 Location -8/Storage Parts ------- > --- POWER (1) -------- (None) > --- PROPULSION (3) --- Carbon-fiber Leg > --- UTILITY (3) ------ Large Storage Unit > --- WEAPON (4) ------- High-powered Shotgun > --- INVENTORY (15) --- Ion Engine Ion Engine Light Treads Armored Treads Light Armor Plating Heavy Assault Rifle Heavy Assault Rifle High-powered Shotgun High-powered Shotgun High-powered Shotgun Enhanced Autogun Rocket Launcher Peak State ------------ > --- POWER ------------ Light Nuclear Core > --- PROPULSION ------- Aluminum Leg Carbon-fiber Leg Carbon-fiber Leg > --- UTILITY ---------- Large Storage Unit Light Armor Plating > --- WEAPON ----------- Improved Lightning Gun High-powered Shotgun High-powered Shotgun Enhanced Autogun > --- INVENTORY -------- Ion Engine Ion Engine Light Treads Armored Treads Carbon-fiber Leg Light Armor Plating Heavy Assault Rifle Heavy Assault Rifle High-powered Shotgun High-powered Shotgun High-powered Shotgun High-powered Shotgun High-powered Shotgun Rocket Launcher Mining Laser [Rating: 31] Favorites ----------- Power Ion Engine Engine Ion Engine Power Core Light Nuclear Core Propulsion Improved Treads Treads Improved Treads Leg Carbon-fiber Leg Utility Large Storage Unit Device Structural Scanner Storage Large Storage Unit Protection Light Armor Plating Weapon High-powered Shotgun Energy Gun Improved Lightning Gun Ballistic Gun High-powered Shotgun Launcher Rocket Launcher Special Weapon Mining Laser Build | -11 -10 -9 -8 -8 ------- Run | Yrd Mat Mat Mat Sto Slots Evolved 4 | . . 2 2 . Power . | . . . . . Propulsion 1 | . . . 1 . Utility 1 | . . . 1 . Weapon 2 | . . 2 . . Parts Attached 45 | . 9 9 14 13 Power 7 | . 2 2 1 2 Engine 5 | . 2 2 1 . Core 2 | . . . . 2 Reactor . | . . . . . Propulsion 11 | . 2 . 4 5 Treads 6 | . 2 . 4 . Leg 5 | . . . . 5 Wheel . | . . . . . Hover . | . . . . . Flight . | . . . . . Utility 7 | . 3 . 3 1 Device 3 | . 2 . 1 . Storage 1 | . 1 . . . Processor . | . . . . . Hackware . | . . . . . Protection 3 | . . . 2 1 Artifact . | . . . . . Weapon 20 | . 2 7 6 5 Energy Gun 1 | . . . . 1 Energy Cannon . | . . . . . Ballistic Gun 15 | . 2 5 5 3 Ballistic Cannon . | . . . . . Launcher 2 | . . 1 1 . Special Weapon 2 | . . 1 . 1 Impact Weapon . | . . . . . Slashing Weapon . | . . . . . Piercing Weapon . | . . . . . Special Melee Weapon . | . . . . . Unidentified Prototypes 2 | . . . . 2 Parts Lost 20 | . . 1 3 16 Power 3 | . . . 1 2 Propulsion 6 | . . . 2 4 Utility 3 | . . . . 3 Weapon 8 | . . 1 . 7 Highest Loss Streak 10 | . . 1 3 10 To Critical Strikes . | . . . . . Average Slot Usage (%) 92 | . 98 95 93 82 Engine 9 | . 14 11 8 1 Core 1 | . . . . 5 Treads 20 | . 26 22 23 9 Leg 4 | . 1 . . 15 Device 8 | . 12 11 9 2 Storage 10 | . 14 11 9 9 Protection 2 | . . . 6 4 Ballistic Gun 32 | . 27 37 35 28 Peak Build Rating 31 | . 12 17 27 31 Average Rating 18 | . 11 15 22 25 On Entrance 13 | 6 6 12 17 27 Naked Turns . | . . . . . Heaviest Build 43 | 12 32 40 43 42 Greatest Support 66 | 20 52 46 66 66 Greatest Overweight (x) 8 | . . . . 8 Average Overweight (x) . | . . . . . Largest Inventory Capacity 15 | . 15 15 15 15 Average Capacity 13 | . 9 15 15 15 Most Carried 15 | . 8 12 15 15 Average Carried 10 | . 6 9 12 14 Final Capacity 15 | 8 15 15 15 15 Final Carried 13 | 6 8 10 13 12 Class Distribution -------------------- 31% | Mutant 26% | Tank 25% | Skirmisher 9% | Scavenger-Gunner 5% | Scavenger-Tank Dominant Class ---------------- Mutant | -10/Materials Skirmisher | -9/Materials Tank | -8/Materials Scavenger-Gunner | -8/Storage Resources | -11 -10 -9 -8 -8 ----------- Run | Yrd Mat Mat Mat Sto Matter Collected 1919 | 200 234 278 466 741 Remotely . | . . . . . Salvage Created 1930 | . 450 256 511 713 Parts 105 | . 19 26 27 33 Haulers Intercepted . | . . . . . Recyclers Shooed . | . . . . . Parts Field Recycled . | . . . . . Retrieved Matter . | . . . . . Parts Self-Destructed . | . . . . . Prevented . | . . . . . Kills | -11 -10 -9 -8 -8 ------- Run | Yrd Mat Mat Mat Sto Combat Hostiles Destroyed 52 | . 10 10 17 15 Guns 47 | . 10 7 15 15 AOE 5 | . . 3 2 . Classes Destroyed 11 | . 2 3 1 5 Worker 1 | . . . . 1 Builder 2 | . . 1 1 . Recycler 1 | . . . . 1 Mechanic 1 | . . . . 1 Operator 1 | . . . . 1 Watcher 3 | . 1 1 1 . Swarmer 14 | . . 7 4 3 Grunt 29 | . 10 . 11 8 Brawler 2 | . . . 1 1 Duelist 1 | . . . . 1 Sentry 6 | . . 3 1 2 Thug 1 | . . . . 1 Best Kill Streak 9 | . 4 5 8 9 Combat Bots Only 9 | . 4 4 6 9 Max Kills in Single Turn 4 | . 2 4 2 2 Gunslinging 1 | . 1 . . 1 Exploded 2 | . . 2 1 . Melee . | . . . . . Uniques/NPCs Destroyed . | . . . . . Combat | -11 -10 -9 -8 -8 -------- Run | Yrd Mat Mat Mat Sto Hostile Shots Fired 295 | . 29 56 75 135 Missed 70 | . 9 18 16 27 Damage Taken 3357 | . 253 377 782 1945 Core 653 | . 79 24 62 488 Absorbed by Shields . | . . . . . Core Remaining (%) 87 | 100 68 94 . . Volleys Fired 118 | . 24 19 35 40 Largest 4 | . 2 4 4 4 Hottest 210 | . 46 169 108 210 Shots Fired 392 | . 48 67 135 142 Gun 373 | . 48 62 131 132 Cannon . | . . . . . Launcher 6 | . . 2 4 . Special 13 | . . 3 . 10 Kinetic 364 | . 48 62 131 123 Thermal 13 | . . 3 . 10 Explosive 6 | . . 2 4 . Electromagnetic 9 | . . . . 9 Robot Hit Streak 10 | . 7 8 10 6 Robot Miss Streak 10 | . 2 8 10 8 Penetration Max . | . . . . . Secondary Targets 7 | . 1 2 . 4 Max Gunslinging Chain 1 | . 1 1 . 1 Shots Hit Robots 225 | . 30 28 78 89 Core Hits 118 | . 15 14 38 51 Critical Kills 1 | . . . 1 . Critical Parts Destroyed 2 | . . . 1 1 Critical Strikes 3 | . . . 2 1 Destroy 3 | . . . 2 1 Melee Attacks . | . . . . . Impact . | . . . . . Slashing . | . . . . . Piercing . | . . . . . Sneak Attacks . | . . . . . Combat Hostiles . | . . . . . Follow-up Attacks . | . . . . . Damage Inflicted 4784 | . 465 591 1820 1908 Guns 4142 | . 465 414 1478 1785 Cannons . | . . . . . Explosions 519 | . . 177 342 . Melee . | . . . . . Ramming 3 | . . . . 3 Kinetic 4115 | . 465 414 1478 1758 Thermal 120 | . . . . 120 Explosive 519 | . . 177 342 . Electromagnetic 27 | . . . . 27 Impact . | . . . . . Slashing . | . . . . . Piercing . | . . . . . Highest Corruption 2 | . . . . 2 Average Corruption 2 | . . . . 2 Corruption Purged . | . . . . . Corruption Blocked . | . . . . . Effects 8 | . . . . 8 Message Errors 2 | . . . . 2 Heat Flow Errors 2 | . . . . 2 Data Loss (major) 2 | . . . . 2 Misfires 1 | . . . . 1 Weapon Failures 1 | . . . . 1 Overload Shots . | . . . . . Overflow Damage 8 | . . 8 . . Projectiles . | . . . . . Explosions 8 | . . 8 . . Melee . | . . . . . Knockbacks . | . . . . . Impact . | . . . . . Kinetic . | . . . . . Secondary . | . . . . . Self-Inflicted Damage . | . . . . . Shots . | . . . . . Rammed . | . . . . . Targets Rammed 1 | . . . . 1 Kicked 1 | . . . . 1 Crushed . | . . . . . Highest Temperature 761 | . 22 100 273 761 Average Temperature 127 | . 4 27 89 197 Received Heat Transfer 1404 | . 153 36 396 819 Effects 29 | . . . . 29 Shutdowns 4 | . . . . 4 Energy Bleed 2 | . . . . 2 Interference 1 | . . . . 1 Matter Decay 2 | . . . . 2 Short Circuit 3 | . . . . 3 Damage (minor) 2 | . . . . 2 Damage (major) 12 | . . . . 12 Damage (core) 3 | . . . . 3 Siege Activations . | . . . . . Robots Corrupted . | . . . . . Combat Hostiles . | . . . . . Parts Fried . | . . . . . Impact Corruptions . | . . . . . Robots Melted . | . . . . . Combat Hostiles . | . . . . . Parts Melted . | . . . . . Heat Transferred 250 | . . . . 250 Parts Sabotaged . | . . . . . Parts Stolen . | . . . . . Parts Stripped . | . . . . . Power Chain Reactions . | . . . . . Alert | -11 -10 -9 -8 -8 ------- Run | Yrd Mat Mat Mat Sto Peak Influence 697 | . 243 481 450 697 Initial 189 | . . 102 118 189 Average 250 | . 80 238 232 482 Maximum Alert Level 2 | . 1 2 2 2 Low Security (%) 55 | . 91 45 58 19 Level 1 23 | . 8 48 34 9 Level 2 20 | . . 6 7 71 Level 3 . | . . . . . Level 4 . | . . . . . Level 5 . | . . . . . High Security . | . . . . . Max Security . | . . . . . Squads Dispatched 10 | . 1 1 4 4 Investigation 1 | . . 1 . . Extermination . | . . . . . Reinforcement 7 | . 1 . 4 2 Assault 2 | . . . . 2 Garrison . | . . . . . Intercept . | . . . . . Searches Triggered . | . . . . . Construction Impeded 1 | . . . 1 . Haulers Reinforced . | . . . . . Active Scanning Responses . | . . . . . Cargo Convoy Interrupts . | . . . . . Stealth | -11 -10 -9 -8 -8 --------- Run | Yrd Mat Mat Mat Sto Distress Signals 6 | . 1 1 . 4 Communications Jammed . | . . . . . Distress Signals . | . . . . . Times Spotted 95 | . 12 15 25 43 Peak Tracking Total 12 | . 4 8 7 12 Tactical Retreats 5 | . . 1 1 3 Traps | -11 -10 -9 -8 -8 ------- Run | Yrd Mat Mat Mat Sto Traps Triggered 2 | . . 1 . 1 Indirectly . | . . . . . Trap Hack Attempts . | . . . . . Triggered . | . . . . . Disarmed . | . . . . . Reprogrammed . | . . . . . Reused . | . . . . . Traps Extracted . | . . . . . Installed . | . . . . . Triggered . | . . . . . Machines | -11 -10 -9 -8 -8 ---------- Run | Yrd Mat Mat Mat Sto Machines Disabled 1 | . . . 1 . Max in Single Turn 1 | . . . 1 . Machines Repaired . | . . . . . Machines Dismantled . | . . . . . Machines Sabotaged . | . . . . . Overloaded Fab Kills . | . . . . . Hacking | -11 -10 -9 -8 -8 --------- Run | Yrd Mat Mat Mat Sto Machines Accessed 1 | . . . . 1 Terminals 1 | . . . . 1 Fabricators . | . . . . . Repair Stations . | . . . . . Recycling Units . | . . . . . Scanalyzers . | . . . . . Garrison Access . | . . . . . Total Hacks 3 | . . . . 3 Successful 1 | . . . . 1 Failed 2 | . . . . 2 Catastrophic . | . . . . . Database Lockouts . | . . . . . Manual . | . . . . . Terminals 3 | . . . . 3 Fabricators . | . . . . . Repair Stations . | . . . . . Recycling Units . | . . . . . Scanalyzers . | . . . . . Garrison Access . | . . . . . Terminal Hacks 1 | . . . . 1 Open Door 1 | . . . . 1 Fabricator Hacks . | . . . . . Repair Station Hacks . | . . . . . Recycling Unit Hacks . | . . . . . Scanalyzer . | . . . . . Garrison Access Hacks . | . . . . . Unauthorized Hacks . | . . . . . Terminals . | . . . . . Fabricators . | . . . . . Repair Stations . | . . . . . Recycling Units . | . . . . . Scanalyzers . | . . . . . Garrison Access . | . . . . . Data Cores Recovered 1 | . . . . 1 Used . | . . . . . Hacking Detections 1 | . . . . 1 Full Trace Events . | . . . . . Feedback Events . | . . . . . Feedback Blocked . | . . . . . Robot Schematics Acquired . | . . . . . Robots Built . | . . . . . Authchips . | . . . . . Time . | . . . . . Total Robot Build Rating . | . . . . . Part Schematics Acquired . | . . . . . Parts Built . | . . . . . Authchips . | . . . . . Time . | . . . . . Total Part Build Rating . | . . . . . Parts Repaired . | . . . . . Time . | . . . . . Parts Recycled . | . . . . . Recycled Matter . | . . . . . Retrieved Matter . | . . . . . Retrieved Components . | . . . . . Parts Scanalyzed . | . . . . . Part Schematics Acquired . | . . . . . Parts Damaged . | . . . . . Bothacking | -11 -10 -9 -8 -8 ------------ Run | Yrd Mat Mat Mat Sto Used RIF Installer . | . . . . . Robots Hacked . | . . . . . Non-combat . | . . . . . Combat . | . . . . . Robot Hacks Applied . | . . . . . Relay Couplers Released . | . . . . . Fabnet Peak Effective % . | . . . . . Robots Rewired . | . . . . . Allies Hacked . | . . . . . Hacks Repelled . | . . . . . Allies | -11 -10 -9 -8 -8 -------- Run | Yrd Mat Mat Mat Sto Total Allies 2 | . . . . 2 Largest Group 2 | . . . . 2 Highest-Rated Group 62 | . . . . 62 Highest-Rated Ally 31 | . . . . 31 Total Orders . | . . . . . Ally Attacks 14 | . . . . 14 Total Damage 210 | . . . . 210 Kills 1 | . . . . 1 Allies Corrupted . | . . . . . Allies Melted . | . . . . . Intel | -11 -10 -9 -8 -8 ------- Run | Yrd Mat Mat Mat Sto Robot Analysis Total . | . . . . . Derelict Logs Recovered . | . . . . . Drone Launches . | . . . . . Drone Recoveries . | . . . . . Exploration | -11 -10 -9 -8 -8 ------------- Run | Yrd Mat Mat Mat Sto Turns Passed 2767 | . 794 539 773 661 Spaces Moved 1393 | 1 414 276 373 329 Core 4 | . . . . 4 Treads 1134 | . 387 276 373 98 Legs 255 | 1 27 . . 227 Wheels . | . . . . . Hover . | . . . . . Flight . | . . . . . Fastest Speed 120 | 120 120 160 160 120 Average Speed 156 | 120 157 160 161 147 Slowest Speed 450 | 120 160 160 163 450 Overloaded Moves . | . . . . . Propulsion Burnouts . | . . . . . Robots Hopped . | . . . . . Cave-ins Triggered . | . . . . . Exploration Rate (%) 25 | 2 39 24 26 34 Regions Visited 4 Branch Regions 1 Pre-discovered Areas . | . . . . . Known Exits Taken . | . . . . . Unknown Exits Taken 4 | 1 1 1 1 . Scrap Searched . | . . . . . Spaces Dug 3 | . . 1 . 2 Terrain Destroyed 51 | . . 18 29 4 Melee . | . . . . . Projectile 6 | . . 2 . 4 AOE 45 | . . 16 29 . Terrain Rammed . | . . . . . Walls Destroyed . | . . . . . Machines Disabled . | . . . . . Actions | -11 -10 -9 -8 -8 --------- Run | Yrd Mat Mat Mat Sto Total 1678 | . 508 320 456 394 Wait 96 | . 50 12 25 9 Move 1389 | . 413 275 372 329 Hop . | . . . . . Pick Up 14 | . 5 3 5 1 Fast Attach 10 | . 1 2 2 5 Attach 7 | . . 1 3 3 Detach . | . . . . . Swap 28 | . 8 6 9 5 Drop 15 | . 7 2 5 1 Fire 118 | . 24 19 35 40 Melee . | . . . . . Ram . | . . . . . Kick 1 | . . . . 1 Crush . | . . . . . Escape Stasis . | . . . . . Rewire . | . . . . . Trap . | . . . . . Miscellaneous . | . . . . . Route ------- -11/Scrapyard -10/Materials (discovered 2 exits: [*Mat] / [*Min]) -9/Materials -8/Materials -8/Storage History --------- Turn | Location | Event 1 | -11/Scrapyard | Discovered new exit (range 0) 1 | -11/Scrapyard | Entered Materials 143 | -10/Materials | Discovered new exit (range 15) 318 | -10/Materials | Build established: Mutant 691 | -10/Materials | Discovered new exit (range 10) 795 | -10/Materials | Entered another Materials area 795 | -9/Materials | Evolved 2 slots: Weapon x2 1139 | -9/Materials | Build established: Skirmisher 1281 | -9/Materials | Discovered new exit (range 15) 1334 | -9/Materials | Entered another Materials area 1334 | -8/Materials | Evolved 2 slots: Propulsion x1, Utility x1 1740 | -8/Materials | Lost 3 parts (1p2n) 1832 | -8/Materials | Build established: Tank 1966 | -8/Materials | Discovered new exit (range 7) 2088 | -8/Materials | Met 7R-MNS 2107 | -8/Materials | Entered Storage 2147 | -8/Storage | Met a pair of Derelict thieves 2319 | -8/Storage | Destroyed 9 combat bots 2322 | -8/Storage | Lost 5 parts (1p1n2u1w) 2716 | -8/Storage | Core integrity fell below 50% 2740 | -8/Storage | Core integrity fell below 20% 2768 | -8/Storage | Destroyed by Y-45 Defender with Heavy Assault Rifle Last Messages --------------- Power failure, Lgt. Nuclear Core shutdown. Overheating: Matter decay (-44). Carbon-fiber Leg destroyed. Hpw. Shotgun broken. Overheating: Short circuit. K-01 Serf cleans the Terminal. Lgt. Nuclear Core destroyed. Critical hit (Burn: +37). Overheating: System interference. Hpw. Shotgun temporarily disabled. M-13 Machinist repairs G-47 Trooper. Overheating: Carbon-fiber Leg damaged (-23). Overheating: Hpw. Shotgun damaged (-69). Overheating: Hpw. Shotgun damaged (-17). Overheating: Carbon-fiber Leg damaged (-26). Overheating: Lrg. Storage Unit damaged (-28). M-13 Machinist repairs Lgt. Nuclear Core. Carbon-fiber Leg broken. Overheating: Short circuit. Hpw. Shotgun destroyed. Map ----- +----------------------------------------------------+ | ?????????????????????????????????????????????????? | | ?????????????????????????????????????????????????? | | ?????????????????????????????????????????????????? | | ?????????????????????????????????????????????????? | | ?????????????????????????????????????????????????? | | ?????????????????????????????????????????????????? | | ?????????????????????????????????????????????????? | | ?????????????????????????????????????????????????? | | ?????????????????????????????????????????????????? | | ?????????????????????????????????????????????????? | | ?????????????????????????????????????????????????? | | ?????????????????????????????????????????????????? | | ?????????????????????????????????????????????????? | | ?????????????????????????????????????????????????? | | ?????????????????????????????????????????????????? | | ?????????????????????????????????????????????????? | | ?????????????????????????????????????????????????? | | ?????????????????????????????????????????????????? | | ?????????????????????????????######??????????????? | | ?????????#####???????????????# T #??????????????? | | ??????####"""#??####?????????# #??????????????? | | ?????## ##"Y"####T"#?????????# #??????????????? | | ?????# ## "########### #??????????????? | | ????### /# + #??????????????? | | ????#"" # r g # #??????????????? | | ????#"Y # @ Y #= #??????????????? | | ????#"" """" # #########g# #??????????????? | | ????### """" + #?????### # #??????????????? | | ??????# """" # #?????#T#!######??????????????? | | ??????# """" # #?????" # ## # #??????????? | | ??????# # T#????"*/=%=[T #??????????? | | ??????######## # ##????" #%##! ### #??????????? | | ?????????????### #?????### ##? ##??????????????? | | ???????????????#####???????# #???#???????????????? | | ???????????????????????????# #???????????????????? | | ?????????????????????????### #???????????????????? | | ???????????????????????###T# #???????????????????? | | ???????????????????????# + #???????????????????? | | ???????????????????????##### #???????????????????? | | ???????????????????????????# #???????????????????? | | ???????????????????????????# #???????????????????? | | ???????????????????????????# #???????????????????? | | ????????????????????????####+#####???????????????? | | ????????????????????????# #???????????????? | | ????#???????????????????# """" #???????????????? | | ????????????????????????# "??" #???????????????? | | ?????##??#??????????????# "??" #???????????????? | | ????????#????????????#??# "??" #???????????????? | | ???????????#?????###????# "??" #???????????????? | | ?????#?????? ???? #????# """" #???????????????? | +----------------------------------------------------+ Best States ------------- Heat Dissipation 31 Energy Generation 14 Energy Capacity 265 Matter Stores 300 Matter Capacity 300 Sight Range 16 Terrain Scan Range 16 Terrain Scan Density 10 Additional Mass Support 6 Armor Coverage 150 Evasion (%) 55 Recoil Reduction 3 Item Schematics ----------------- None Robot Schematics ------------------ None Fabricated ------------ Nothing Alien Tech Used ----------------- None Achievements -------------- None Challenges ------------ None Game ------ Seed DerelictPoweredScreen Manual? 0 Play Time 00:24:53 Cumulative 12.0 hours Start 2025.01.15 @ 16:33:14 End 2025.01.15 @ 16:59:02 Sessions 1 Manual Loads 0 Difficulty Rogue Special Mode None Game No. 24 Rogue 21 Adventurer 3 Explorer 0 Win Type - Total 0 Types 0/0/0/0/0/0/0/0/0 Lore% 7 Gallery% 14 Achievement% 14 Wizard Run 0 Options --------- Layout 0 ASCII 1 Keyboard 1 Movement Arrows Keybinds 0 Fullscreen 2 Font 24/Smallcaps Map View 76x50 Zoom Use 0% Tactical HUD 0 Map Filters NONE Filters NONE Steam 1 RUN: 5ca905bf-61e3-4735-9325-d57227ff706a